bitfinex/quotes_SOLUSD_20241021
["timestamp","ask_amount","ask_price","bid_price","bid_amount"]
[1729502198449,6.23005054,167.56,167.51,5.9697]
[1729502198783,12.19815054,167.56,167.52,1.49415112]
[1729502199077,12.19815054,167.56,167.53,1.49415112]
[1729502199254,12.19815054,167.56,167.5,5.9701]
[1729502199462,5.9683,167.55,167.51,3.88438862]
[1729502199756,5.9683,167.55,167.52,1.49399562]
[1729502199972,5.9683,167.55,167.53,1.49396514]
[1729502200173,5.9683,167.55,167.5,5.9701]
[1729502200478,5.9683,167.55,167.51,3.88431051]
[1729502200668,5.9683,167.55,167.52,1.49396558]
[1729502200855,5.9683,167.55,167.53,1.49396558]
[1729502201056,5.9683,167.55,167.5,5.9701]
[1729502201260,5.9683,167.55,167.51,3.88431056]
[1729502201466,5.9683,167.55,167.52,1.4939656]
[1729502201668,5.9683,167.55,167.5,5.9701]
[1729502201977,23.776884,167.54,167.51,3.8843504]
[1729502202151,23.776884,167.54,167.52,1.49398092]
[1729502202352,23.776884,167.54,167.53,1.49396864]
[1729502204487,29.745584,167.54,167.53,1.49396864]
[1729502204781,5.9691,167.53,167.48,20.8968]
[1729502204987,23.776884,167.55,167.49,3.88469411]
[1729502205279,23.776884,167.53,167.5,3.88469411]
[1729502205480,23.776884,167.53,167.51,1.49411312]
[1729502205659,23.776884,167.53,167.49,5.9704]
[1729502205856,23.776884,167.53,167.5,3.8846464]
[1729502206055,23.776884,167.53,167.51,1.49409477]
[1729502206256,23.776884,167.53,167.49,5.9704]
[1729502206459,23.776884,167.53,167.5,3.88464363]
[1729502206778,29.745884,167.53,167.51,1.4940937]
[1729502206963,29.745884,167.53,167.49,5.9704]
[1729502207278,29.745884,167.53,167.5,1.49413636]
[1729502207581,29.745884,167.53,167.49,5.9704]
[1729502207879,29.745884,167.53,167.5,1.49413734]
[1729502208081,29.745884,167.53,167.49,5.9704]
[1729502208287,29.745884,167.53,167.5,1.49413569]
[1729502208577,29.745884,167.53,167.49,5.9704]
[1729502208782,23.776884,167.53,167.5,1.49413569]
[1729502208965,29.746584,167.51,167.46,5.9712]
[1729502209169,5.9697,167.51,167.47,3.88496561]
[1729502209371,5.9697,167.51,167.48,3.88496561]
[1729502209675,5.9697,167.51,167.49,3.88482905]
[1729502209880,29.746584,167.51,167.5,1.49421754]
[1729502210065,23.776884,167.52,167.5,1.49421754]
[1729502210378,23.776884,167.52,167.48,5.9707]
[1729502210567,23.776884,167.52,167.49,3.88476535]
[1729502210767,23.776884,167.52,167.5,1.49414052]
[1729502210953,23.776884,167.52,167.48,5.9707]
[1729502211158,23.776884,167.52,167.49,3.88464668]
[1729502211363,23.776884,167.52,167.5,1.49409488]
[1729502211581,23.776884,167.52,167.48,5.9707]
[1729502211887,29.746584,167.52,167.49,1.49420034]
[1729502212089,23.776884,167.52,167.46,5.9713]
[1729502212289,23.776884,167.5,167.47,1.49430538]
[1729502212473,23.776884,167.5,167.48,1.49430538]
[1729502212663,23.776884,167.5,167.46,5.9713]
[1729502212986,23.776884,167.5,167.47,1.49432157]
[1729502213194,14.9209,167.55,167.48,1.49432157]
[1729502213489,12.73850367,167.56,167.49,1.49432157]
[1729502213490,23.776884,167.52,167.49,1.49432157]
[1729502213783,23.776884,167.52,167.48,5.9706]
[1729502213974,23.776884,167.52,167.49,1.49417298]
[1729502214175,23.776884,167.52,167.48,5.9706]
[1729502214577,23.776884,167.52,167.49,1.49416074]
[1729502214787,23.776884,167.52,167.5,1.49416074]
[1729502214964,23.776884,167.52,167.48,5.9706]
[1729502215163,23.776884,167.52,167.49,1.49416906]
[1729502215388,23.776884,167.52,167.5,1.49416906]
[1729502215688,23.776884,167.52,167.48,5.9706]
[1729502216973,23.776884,167.52,167.49,1.49415446]
[1729502217307,23.776884,167.52,167.5,1.49415446]
[1729502217587,23.776884,167.52,167.48,5.9706]
[1729502217797,23.776884,167.52,167.49,1.49415446]
[1729502218099,23.776884,167.52,167.48,5.9706]
[1729502218381,23.776884,167.52,167.49,1.49417025]
[1729502218562,23.776884,167.52,167.5,1.49414371]
[1729502218762,23.776884,167.52,167.48,5.9706]
[1729502218971,23.776884,167.52,167.49,1.49414422]
[1729502219185,23.776884,167.52,167.48,5.9706]
[1729502219186,23.776884,167.52,167.5,1.49414422]
[1729502219385,23.776884,167.52,167.48,5.9706]
[1729502219611,23.776884,167.52,167.49,1.49414244]
[1729502219901,23.776884,167.52,167.5,1.49414244]
[1729502220103,23.776884,167.52,167.48,5.9706]
[1729502220294,5.9696,167.52,167.49,1.49413969]
[1729502220494,23.776884,167.5,167.47,14.9274]
[1729502220693,23.776884,167.5,167.48,1.49429195]
[1729502220904,23.776884,167.5,167.49,1.49429195]
[1729502222116,23.776884,167.51,167.44,2.98863793]
[1729502222289,23.776884,167.45,167.41,5.9733]
[1729502222482,5.9722,167.44,167.42,5.38034899]
[1729502222688,29.749084,167.44,167.4,14.9341]
[1729502223007,5.9722,167.44,167.41,2.39152877]
[1729502223220,23.776884,167.43,167.39,5.974]
[1729502223504,23.776884,167.43,167.4,2.39161141]
[1729502223695,23.776884,167.43,167.41,2.39161141]
[1729502223910,23.776884,167.43,167.39,5.974]
[1729502224210,23.776884,167.48,167.41,5.9733]
[1729502224381,23.776884,167.49,167.42,5.38081527]
[1729502224580,23.776884,167.49,167.44,5.972]
[1729502225587,29.747484,167.49,167.44,5.972]
[1729502225794,6.22330121,167.48,167.44,5.972]
[1729502226288,6.22330121,167.48,167.45,2.39128735]
[1729502226487,6.22330121,167.48,167.44,5.972]
[1729502226698,6.22330121,167.48,167.45,2.39127914]
[1729502226899,6.22330121,167.48,167.44,5.972]
[1729502227105,6.22330121,167.48,167.45,2.39128198]
[1729502227314,23.776884,167.47,167.43,14.9316]
[1729502227500,23.776884,167.47,167.44,2.39128413]
[1729502227692,23.776884,167.47,167.45,2.39128413]
[1729502227888,23.776884,167.47,167.43,14.9316]
[1729502228105,23.776884,167.47,167.44,2.39128148]
[1729502228314,23.776884,167.47,167.45,2.39128148]
[1729502228522,23.776884,167.47,167.43,20.9042]
[1729502228699,23.776884,167.47,167.44,2.39139883]
[1729502229025,23.776884,167.47,167.43,20.9042]
[1729502229324,23.776884,167.47,167.44,2.39139805]
[1729502229622,23.776884,167.47,167.43,20.9042]
[1729502229821,23.776884,167.47,167.44,2.39138259]
[1729502230027,23.776884,167.47,167.43,20.9042]
[1729502230216,23.776884,167.47,167.44,2.39138443]
[1729502230416,23.776884,167.47,167.43,20.9042]
[1729502230620,23.776884,167.47,167.44,2.39138828]
[1729502230800,23.776884,167.47,167.43,20.9042]
[1729502231099,23.776884,167.47,167.44,2.39138849]
[1729502231295,23.776884,167.47,167.45,2.39135569]
[1729502231506,23.776884,167.47,167.43,20.9042]
[1729502231699,23.776884,167.47,167.44,2.39136571]
[1729502231903,23.776884,167.47,167.45,2.39136571]
[1729502232112,23.776884,167.47,167.43,20.9042]
[1729502232427,23.776884,167.47,167.44,2.3914244]
[1729502232631,23.776884,167.47,167.45,2.3914244]
[1729502232805,23.776884,167.47,167.43,20.9042]
[1729502233002,23.776884,167.47,167.44,2.3914509]
[1729502233204,29.748084,167.47,167.43,14.9316]
[1729502233418,29.748084,167.47,167.44,2.39144423]
[1729502233726,29.748084,167.47,167.43,14.9316]
[1729502233910,29.748084,167.47,167.44,2.39143318]
[1729502234225,29.748084,167.47,167.45,1.49464573]
[1729502234395,29.748084,167.47,167.46,1.49464573]
[1729502236823,23.776884,167.47,167.4,0.70411206]
[1729502237031,6.22330121,167.48,167.39,20.0]
[1729502237323,16.10094685,167.52,167.46,5.9712]
[1729502237324,5.9697,167.52,167.46,5.9712]
[1729502237522,5.9697,167.52,167.43,16.28221234]
[1729502237523,6.22128931,167.51,167.47,9.85736257]
[1729502237727,6.22128931,167.51,167.48,1.49471637]
[1729502237905,6.22128931,167.51,167.49,1.49471637]
[1729502238100,6.22128931,167.51,167.47,5.9711]
[1729502238312,12.19108931,167.51,167.48,3.88547547]
[1729502238519,12.19108931,167.51,167.49,1.49441364]
[1729502238723,12.19108931,167.51,167.46,5.9714]
[1729502238910,12.19108931,167.51,167.47,3.88546818]
[1729502239224,12.19108931,167.51,167.42,15.63731234]
[1729502239225,23.776884,167.48,167.42,15.63731234]
[1729502239429,5.9715,167.47,167.43,6.87505737]
[1729502239619,5.9715,167.47,167.44,3.88590199]
[1729502239939,23.776884,167.48,167.45,1.49457769]
[1729502240117,23.776884,167.45,167.4,0.70501234]
[1729502240319,5.9726,167.43,167.41,6.87591842]
[1729502240526,5.9726,167.43,167.42,3.88638867]
[1729502240706,29.749484,167.43,167.42,3.88638867]
[1729502243042,23.776884,167.42,167.38,0.70458641]
[1729502243241,29.749884,167.42,167.39,6.87668869]
[1729502243420,29.749884,167.42,167.4,6.87668869]
[1729502243615,29.749884,167.42,167.41,3.88682404]
[1729502243850,43.776884,167.42,167.34,0.70458641]
[1729502244142,23.776884,167.39,167.35,6.87820517]
[1729502244312,23.776884,167.39,167.36,1.49526199]
[1729502244313,29.751684,167.37,167.36,1.49526199]
[1729502244730,23.776884,167.36,167.32,14.9406]
[1729502244937,29.751984,167.36,167.33,3.88819044]
[1729502245129,29.751984,167.36,167.34,1.49545786]
[1729502245445,5.9755,167.35,167.3,15.8932]
[1729502245618,5.9755,167.35,167.31,1.4955616]
[1729502245820,5.9755,167.35,167.3,18.28609856]
[1729502246018,23.776884,167.36,167.31,1.49556161]
[1729502246226,29.752084,167.36,167.31,5.9769]
[1729502247340,5.9748,167.37,167.32,5.9765]
[1729502247736,23.776884,167.38,167.32,5.9765]
[1729502248044,6.22121499,167.38,167.3,15.8932]
[1729502248228,6.22121499,167.38,167.31,1.49542014]
[1729502248428,5.9743,167.39,167.31,1.49542014]
[1729502249029,5.9743,167.39,167.33,14.9403]
[1729502249435,5.9746,167.38,167.33,20.9163]
[1729502249758,23.776884,167.39,167.33,14.9403]
[1729502250120,5.9749,167.37,167.33,14.9403]
[1729502250834,23.776884,167.39,167.33,14.9403]
[1729502251030,6.22061283,167.4,167.37,5.9747]
[1729502251622,5.9733,167.42,167.37,5.9747]
[1729502253143,12.19349894,167.43,167.37,5.9747]
[1729502256338,5.973,167.42,167.37,5.9747]
[1729502257150,6.22089894,167.43,167.36,5.9749]
[1729502257338,5.9743,167.39,167.33,5.9759]
[1729502257533,5.9743,167.39,167.33,5.9762]
[1729502257846,24.81635789,167.4,167.32,14.9413]
[1729502258055,5.9751,167.37,167.32,14.9413]
[1729502258740,5.9751,167.37,167.32,20.9177]
[1729502259829,5.9751,167.36,167.32,14.9413]
[1729502260046,5.9756,167.35,167.3,15.8932]
[1729502260654,5.9756,167.35,167.3,21.8702]
[1729502261939,16.44185789,167.4,167.3,21.8702]
[1729502262140,20.0,167.39,167.3,15.8932]
[1729502262339,16.54185789,167.4,167.26,15.2853]
[1729502262340,20.0,167.36,167.26,15.2853]
[1729502262566,6.0475,167.34,167.23,5.9797]
[1729502262735,20.0,167.33,167.23,5.9797]
[1729502263054,5.9783,167.28,167.22,36.1786]
[1729502263362,5.9783,167.28,167.23,5.9795]
[1729502263735,34.9405,167.33,167.24,5.9793]
[1729502264128,23.776884,167.32,167.24,5.9793]
[1729502264739,5.9769,167.31,167.24,5.9793]
[1729502264944,5.9777,167.29,167.24,5.9793]
[1729502268076,5.977,167.31,167.25,5.9787]
[1729502268245,5.81900145,167.31,167.26,5.9786]
[1729502270761,5.81900145,167.31,167.25,5.979]
[1729502271164,5.9773,167.3,167.25,5.979]
[1729502275278,12.21002317,167.32,167.26,5.9784]
[1729502275865,6.23322317,167.32,167.26,5.9784]
[1729502276070,5.9769,167.31,167.26,5.9784]
[1729502278263,5.9769,167.31,167.27,1.49579655]
[1729502278458,5.9769,167.31,167.26,5.9784]
[1729502278663,5.9769,167.31,167.27,1.49579605]
[1729502278866,5.9769,167.31,167.26,8.37167448]
[1729502279062,5.9769,167.31,167.27,1.49579151]
[1729502279268,5.9769,167.31,167.28,1.49579151]
[1729502279459,25.9772,167.3,167.29,1.49579151]
[1729502279687,5.9769,167.31,167.26,5.9786]
[1729502279984,5.9769,167.31,167.27,1.49591687]
[1729502280190,5.9769,167.31,167.28,1.49591687]
[1729502280486,5.9769,167.31,167.25,5.9789]
[1729502280487,20.0,167.31,167.25,5.9789]
[1729502280684,5.9777,167.29,167.26,3.88939853]
[1729502280886,5.9777,167.29,167.27,1.49592251]
[1729502281085,5.978,167.28,167.25,2.39347602]
[1729502281273,5.9783,167.27,167.26,1.49603201]
[1729502281597,5.9783,167.27,167.23,2.39372453]
[1729502281808,5.9783,167.27,167.24,3.88984087]
[1729502282095,5.9783,167.27,167.25,1.49612872]
[1729502282396,5.9783,167.27,167.22,21.2283]
[1729502282572,5.9783,167.27,167.23,1.49622811]
[1729502282771,5.9783,167.27,167.24,1.49622811]
[1729502282971,5.9783,167.27,167.23,2.39396419]
[1729502283185,5.9783,167.27,167.24,1.4962001]
[1729502283386,5.9783,167.27,167.22,21.2283]
[1729502283593,5.9783,167.27,167.23,1.49620017]
[1729502283791,5.9783,167.27,167.24,1.49620017]
[1729502283972,5.9783,167.27,167.22,21.2283]
[1729502284296,6.23196569,167.3,167.23,1.49619714]
[1729502284511,5.9789,167.26,167.24,1.49619714]
[1729502284664,5.9789,167.26,167.22,17.64236483]
[1729502284862,5.9789,167.26,167.23,1.49624281]
[1729502285066,5.9789,167.26,167.24,1.49624281]
[1729502285284,5.9789,167.26,167.22,2.39396483]
[1729502285486,5.9789,167.26,167.23,1.49624636]
[1729502285686,5.9789,167.26,167.24,1.49624636]
[1729502285996,5.9789,167.26,167.22,2.39396483]
[1729502286194,5.9789,167.26,167.23,1.4962309]
[1729502286375,5.9789,167.26,167.22,2.39396483]
[1729502286574,5.9789,167.26,167.23,1.49623264]
[1729502286771,5.9789,167.26,167.22,2.39396483]
[1729502286995,5.9789,167.26,167.23,1.49624596]
[1729502287178,5.9789,167.26,167.22,2.39396483]
[1729502287370,5.9789,167.26,167.23,1.49624471]
[1729502287570,5.9789,167.26,167.22,2.39396483]
[1729502287787,5.9789,167.26,167.23,1.49624293]
[1729502287995,5.9789,167.26,167.24,1.49623711]
[1729502288198,5.9789,167.26,167.22,2.39396483]
[1729502288387,5.9789,167.26,167.23,1.49623227]
[1729502288596,5.9789,167.26,167.22,2.39396483]
[1729502288894,20.0,167.29,167.23,1.49623178]
[1729502288895,5.979,167.25,167.23,1.49623178]
[1729502289196,5.9785,167.27,167.22,2.39395555]
[1729502289498,5.9787,167.26,167.23,1.49621156]
[1729502289673,5.9787,167.26,167.24,1.49621156]
[1729502289873,5.9787,167.26,167.22,2.39395555]
[1729502290081,6.23196569,167.3,167.23,1.49620326]
[1729502290295,12.20926569,167.3,167.25,5.9788]
[1729502290595,5.9776,167.29,167.26,1.49620326]
[1729502290796,5.9776,167.29,167.25,5.9788]
[1729502290972,5.9776,167.29,167.26,1.49597568]
[1729502291177,5.9776,167.29,167.27,1.49597568]
[1729502291378,5.9776,167.29,167.25,8.3723603]
[1729502291601,6.23196569,167.3,167.26,7.47466043]
[1729502291782,6.23196569,167.3,167.27,1.49596043]
[1729502292101,6.23196569,167.3,167.26,5.9787]
[1729502292401,6.23196569,167.3,167.27,1.49595975]
[1729502292703,6.23196569,167.3,167.26,5.9787]
[1729502293182,6.23196569,167.3,167.27,1.49596018]
[1729502293394,6.23196569,167.3,167.26,5.9787]
[1729502293582,6.23196569,167.3,167.27,1.49594935]
[1729502293778,6.23196569,167.3,167.26,5.9787]
[1729502293981,6.23196569,167.3,167.27,1.49594679]
[1729502294197,6.23196569,167.3,167.26,5.9787]
[1729502294404,6.23196569,167.3,167.27,1.49594624]
[1729502294582,6.23196569,167.3,167.26,5.9787]
[1729502294788,6.23196569,167.3,167.27,1.49592192]
[1729502294976,6.23196569,167.3,167.26,8.37217507]
[1729502295176,6.23196569,167.3,167.27,1.4959195]
[1729502295401,6.23196569,167.3,167.26,8.37217507]
[1729502295700,6.23196569,167.3,167.27,1.49591907]
[1729502295899,6.23196569,167.3,167.26,2.39347507]
[1729502296103,12.20916569,167.3,167.27,1.49591965]
[1729502296403,12.20916569,167.3,167.26,2.39347507]
[1729502296605,12.20916569,167.3,167.27,1.49592204]
[1729502296807,12.20916569,167.3,167.26,2.39347507]
[1729502296985,12.20916569,167.3,167.27,1.49591977]
[1729502297183,12.20916569,167.3,167.25,5.9789]
[1729502297381,12.20916569,167.3,167.26,1.49593384]
[1729502297585,12.20916569,167.3,167.27,1.49593384]
[1729502297794,12.20916569,167.3,167.25,5.9789]
[1729502297995,12.20916569,167.3,167.26,1.49593232]
[1729502298306,12.20916569,167.3,167.27,1.49593232]
[1729502298607,12.20916569,167.3,167.25,5.9789]
[1729502298775,12.20916569,167.3,167.26,1.49593685]
[1729502298979,12.20916569,167.3,167.27,1.49593685]
[1729502299175,12.20916569,167.3,167.26,2.39349739]
[1729502299403,12.20916569,167.3,167.27,1.49593587]
[1729502299708,12.20916569,167.3,167.26,2.39349739]
[1729502299897,12.20916569,167.3,167.27,1.49592946]
[1729502300096,12.20916569,167.3,167.25,5.9789]
[1729502300404,12.20916569,167.3,167.26,3.88942864]
[1729502300585,12.20916569,167.3,167.27,1.49593409]
[1729502300784,12.20916569,167.3,167.26,2.39349455]
[1729502300995,12.20916569,167.3,167.27,1.49593409]
[1729502301179,12.20916569,167.3,167.25,5.9789]
[1729502301383,12.20916569,167.3,167.26,3.8894266]
[1729502301585,12.20916569,167.3,167.27,1.49593331]
[1729502301801,12.20916569,167.3,167.25,5.9789]
[1729502301993,12.20916569,167.3,167.26,3.88943582]
[1729502302193,12.20916569,167.3,167.27,1.49593685]
[1729502302385,12.20916569,167.3,167.24,14.9485]
[1729502302386,5.978,167.28,167.24,14.9485]
[1729502302582,5.978,167.28,167.25,3.88946559]
[1729502302781,5.978,167.28,167.26,1.4959483]
[1729502303008,5.978,167.28,167.27,1.4959483]
[1729502303798,5.978,167.28,167.24,14.9485]
[1729502304107,5.978,167.28,167.25,3.88943706]
[1729502304282,5.978,167.28,167.26,3.88943706]
[1729502304482,5.978,167.28,167.27,1.49593733]
[1729502307500,6.23196569,167.3,167.28,5.9779]
[1729502307705,6.23196569,167.3,167.29,1.49580364]
[1729502311215,6.23196569,167.3,167.27,20.9239]
[1729502311402,6.23196569,167.3,167.28,1.49588825]
[1729502311719,6.23196569,167.3,167.29,1.49588825]
[1729502313418,6.23196569,167.3,167.29,9.86680395]
[1729502313629,5.9755,167.35,167.29,9.86680395]
[1729502313921,12.20681452,167.35,167.3,9.86640395]
[1729502314220,12.20681452,167.35,167.31,3.88920395]
[1729502314405,12.20681452,167.35,167.32,3.88920395]
[1729502314607,6.23131452,167.35,167.33,1.49588825]
[1729502314922,14.9346,167.4,167.34,1.49588825]
[1729502314923,5.9748,167.37,167.34,1.49588825]
[1729502315093,5.9748,167.37,167.32,5.9765]
[1729502315296,5.9748,167.37,167.33,3.88840663]
[1729502315525,5.9748,167.37,167.34,1.49554101]
[1729502315725,5.9748,167.37,167.32,5.9765]
[1729502315896,5.9748,167.37,167.33,3.8883955]
[1729502316096,5.9748,167.37,167.34,1.49553673]
[1729502316315,5.9748,167.37,167.35,1.49553673]
[1729502316521,6.23072422,167.38,167.37,5.9747]
[1729502316736,5.9727,167.43,167.37,7.47004422]
[1729502317037,5.9732,167.42,167.38,1.49534422]
[1729502317237,5.9732,167.42,167.37,5.9747]
[1729502317448,5.9732,167.42,167.38,1.49527876]
[1729502317611,5.9732,167.42,167.37,5.9747]
[1729502317818,5.9734,167.41,167.38,1.49519341]
[1729502318138,12.20274084,167.43,167.39,1.49519341]
[1729502318436,6.23014084,167.43,167.36,14.9377]
[1729502318610,6.23014084,167.43,167.37,1.49522136]
[1729502318810,6.23014084,167.43,167.38,1.49522136]
[1729502319006,5.9739,167.4,167.35,5.9755]
[1729502319314,5.9737,167.4,167.36,3.88761836]
[1729502319538,5.9737,167.4,167.37,1.49523783]
[1729502319735,5.9737,167.4,167.38,1.49523783]
[1729502319919,5.9737,167.4,167.35,5.9754]
[1729502320124,5.9737,167.4,167.36,3.88755442]
[1729502320335,5.9737,167.4,167.35,5.9754]
[1729502320336,5.9737,167.4,167.37,1.49521324]
[1729502320533,5.9737,167.4,167.38,1.49521324]
[1729502320832,5.9737,167.4,167.36,2.39233012]
[1729502321032,12.20284084,167.43,167.38,5.9742]
[1729502321253,12.20284084,167.43,167.4,5.9736]
[1729502321254,6.23014084,167.43,167.4,5.9736]
[1729502321544,5.972,167.45,167.4,5.9736]
[1729502321845,12.19891318,167.45,167.4,5.9736]
[1729502322049,6.22691318,167.45,167.41,5.9731]
[1729502322916,6.22691318,167.45,167.42,5.9729]
[1729502323114,6.22691318,167.45,167.41,20.9063]
[1729502329830,6.22691318,167.45,167.38,16.2017]
[1729502332658,12.19881318,167.45,167.38,16.2017]
[1729502333559,12.19881318,167.45,167.38,22.1761]
[1729502335942,6.22691318,167.45,167.38,22.1761]
[1729502336242,5.9723,167.44,167.38,22.1761]
[1729502336949,5.9723,167.44,167.38,16.2017]
[1729502337151,5.9729,167.43,167.38,16.2017]
[1729502337758,5.9735,167.41,167.36,14.9371]
[1729502337963,5.974,167.4,167.35,6.4716]
[1729502338176,23.776884,167.44,167.34,16.2072]
[1729502338338,20.0,167.42,167.34,16.2072]
[1729502338539,5.9751,167.36,167.31,6.1357]
[1729502339676,32.4331386,167.42,167.29,31.1509]
[1729502339879,5.976,167.34,167.29,31.1509]
[1729502340047,5.9763,167.33,167.29,16.2072]
[1729502340246,5.9769,167.32,167.27,6.0652]
[1729502340442,5.9774,167.3,167.25,15.6169]
[1729502340657,5.9776,167.3,167.25,15.6169]
[1729502340848,43.776884,167.34,167.25,15.6169]
[1729502341363,49.959384,167.34,167.21,14.9508]
[1729502341756,5.9794,167.24,167.2,16.559]
[1729502342271,5.9794,167.24,167.17,14.9544]
[1729502342844,5.9794,167.24,167.17,20.9362]
[1729502343649,5.9794,167.24,167.18,20.0]
[1729502345666,0.1,167.32,167.18,20.0]
[1729502345872,0.1,167.32,167.18,25.9814]
[1729502345873,5.9791,167.25,167.18,25.9814]
[1729502348471,43.776884,167.3,167.18,25.9814]
[1729502348680,5.9795,167.24,167.18,25.9814]
[1729502349560,5.9795,167.24,167.18,20.0]
[1729502350692,5.9798,167.23,167.18,20.0]
[1729502351068,6.23336453,167.27,167.18,20.0]
[1729502351290,5.9803,167.22,167.18,20.0]
[1729502351492,5.9814,167.19,167.15,16.559]
[1729502351996,5.9814,167.19,167.16,20.0]
[1729502355206,6.5034,167.25,167.16,20.0]
[1729502355378,6.5034,167.25,167.13,14.9577]
[1729502355379,43.776884,167.24,167.13,14.9577]
[1729502355580,5.9819,167.18,167.14,1.49688046]
[1729502355789,5.9819,167.18,167.13,14.9577]
[1729502356497,5.9819,167.18,167.13,20.941]
[1729502356684,5.9819,167.18,167.14,20.0]
[1729502363709,5.9819,167.18,167.13,20.941]
[1729502364102,5.9819,167.18,167.14,20.0]
[1729502364307,22.18770622,167.23,167.14,25.9828]
[1729502364513,5.9812,167.19,167.14,25.9828]
[1729502368414,21.14794438,167.23,167.14,20.0]
[1729502368616,5.9808,167.2,167.15,5.9825]
[1729502368801,5.9808,167.2,167.14,34.9574]
[1729502368802,5.9815,167.19,167.14,34.9574]
[1729502369003,5.9801,167.22,167.14,34.9574]
[1729502369205,5.9815,167.19,167.14,34.9574]
[1729502371512,5.9815,167.19,167.14,40.9403]
[1729502377719,5.9817,167.18,167.14,34.9574]
[1729502378042,5.9819,167.17,167.14,34.9574]
[1729502379126,5.9816,167.18,167.14,34.9574]
[1729502380011,6.20036299,167.21,167.14,34.9574]
[1729502380219,6.20036299,167.21,167.16,14.9557]
[1729502380526,5.9805,167.21,167.17,5.9818]
[1729502381819,5.98,167.23,167.18,5.9815]
[1729502382024,6.19918119,167.25,167.21,5.9801]
[1729502382240,37.1274,167.29,167.21,5.9801]
[1729502382436,5.9788,167.26,167.21,5.9801]
[1729502383030,6.19766224,167.29,167.2,0.1]
[1729502383339,6.19766224,167.29,167.22,20.1]
[1729502383520,6.19766224,167.29,167.24,20.0]
[1729502383723,5.9789,167.26,167.21,20.0]
[1729502384148,5.9789,167.26,167.21,25.9803]
[1729502384522,5.9783,167.27,167.21,20.0]
[1729502384760,5.9769,167.31,167.22,20.0]
[1729502384936,5.9769,167.31,167.26,5.9785]
[1729502385338,5.9772,167.3,167.25,5.979]
[1729502390456,5.9772,167.3,167.24,20.9269]
[1729502390457,5.9774,167.3,167.24,20.9269]
[1729502391346,5.9774,167.3,167.25,5.979]
[1729502394353,6.19658684,167.32,167.25,5.979]
[1729502394653,5.9776,167.29,167.25,5.979]
[1729502394839,5.9772,167.31,167.24,20.0]
[1729502395044,5.9772,167.31,167.25,5.9787]
[1729502395656,5.9772,167.3,167.24,40.9278]
[1729502396054,5.9781,167.28,167.22,20.0]
[1729502396248,5.9777,167.29,167.24,20.0]
[1729502397457,5.978,167.28,167.22,20.0]
[1729502397636,5.978,167.28,167.22,25.9801]
[1729502398149,5.978,167.28,167.23,1.49641379]
[1729502398344,5.978,167.28,167.24,20.0]
[1729502399033,12.17338684,167.32,167.26,5.9783]
[1729502399255,5.9768,167.32,167.27,1.49624244]
[1729502399461,5.9768,167.32,167.26,5.9783]
[1729502399664,5.9768,167.32,167.27,1.4961629]
[1729502399868,25.9762,167.33,167.26,14.9465]
[1729502400042,25.9762,167.33,167.27,7.47414476]
[1729502400369,6.19805907,167.34,167.26,14.9465]
[1729502400574,5.9768,167.32,167.27,1.49614256]
[1729502400741,5.9768,167.32,167.26,20.9251]
[1729502400940,5.9768,167.32,167.27,1.49614558]
[1729502401168,5.9768,167.32,167.26,20.9251]
[1729502401357,5.9768,167.32,167.27,1.4961455]
[1729502401549,5.9768,167.32,167.26,20.9251]
[1729502401740,5.9768,167.32,167.27,1.49614323]
[1729502401941,5.9768,167.32,167.26,20.9251]
[1729502402162,5.9768,167.32,167.27,1.49614164]
[1729502402465,5.9769,167.31,167.26,20.9251]
[1729502403143,5.9769,167.31,167.27,7.47443888]
[1729502403462,5.9769,167.31,167.27,5.9783]
[1729502403771,43.776884,167.36,167.24,36.6227]
[1729502403952,20.0,167.34,167.25,1.49621725]
[1729502404151,20.0,167.34,167.24,36.6227]
[1729502404152,5.9778,167.29,167.24,42.602]
[1729502404469,5.9778,167.29,167.25,7.47519549]
[1729502404665,5.9778,167.29,167.26,1.49619549]
[1729502404843,5.9778,167.29,167.25,5.979]